[Event "Titled Tuesday Blitz January 10 Early 2023"]
[White "Bas Mas, Jose Joaquin"]
[Black "Valle Maytin, Luis Enrique"]
[WhiteFideId "22219064"]
[BlackFideId "3503666"]
[WhiteElo "2197"]
[BlackElo "2241"]
[Result "1-0"]
[Round "07"]
[TimeControl "180+2"]
[Date "2023.01.10"]
[WhiteClock "0:00:12"]
[BlackClock "0:00:03"]

1. e4 {[%clk 0:03:00]}  c6 {[%clk 0:02:59]} 2. d4 {[%clk 0:03:00]}  d5 {[%clk 0:03:00]} 3. exd5 {[%clk 0:03:00]}  cxd5 {[%clk 0:03:00]} 4. c4 {[%clk 0:03:01]}  Nf6 {[%clk 0:02:59]} 5. Nc3 {[%clk 0:03:01]}  Nc6 {[%clk 0:02:59]} 6. Bg5 {[%clk 0:02:59]}  Be6 {[%clk 0:02:57]} 7. c5 {[%clk 0:02:52]}  g6 {[%clk 0:02:54]} 8. Bb5 {[%clk 0:02:42]}  Bg7 {[%clk 0:02:54]} 9. Nge2 {[%clk 0:02:42]}  O-O {[%clk 0:02:54]} 10. O-O {[%clk 0:02:42]}  Ne4 {[%clk 0:02:46]} 11. Be3 {[%clk 0:02:41]}  a6 {[%clk 0:02:29]} 12. Ba4 {[%clk 0:02:37]}  Bf5 {[%clk 0:02:09]} 13. Bb3 {[%clk 0:02:20]}  Nxc3 {[%clk 0:02:02]} 14. Nxc3 {[%clk 0:02:18]}  Be6 {[%clk 0:01:55]} 15. Na4 {[%clk 0:02:07]}  Qc7 {[%clk 0:01:40]} 16. Re1 {[%clk 0:02:02]}  Rad8 {[%clk 0:01:39]} 17. Rc1 {[%clk 0:01:57]}  Na5 {[%clk 0:01:36]} 18. Nb6 {[%clk 0:01:48]}  Nxb3 {[%clk 0:01:27]} 19. Qxb3 {[%clk 0:01:48]}  Qc6 {[%clk 0:01:24]} 20. a4 {[%clk 0:01:46]}  f6 {[%clk 0:01:22]} 21. Qc3 {[%clk 0:01:37]}  Bf7 {[%clk 0:01:20]} 22. b4 {[%clk 0:01:38]}  e5 {[%clk 0:01:19]} 23. Qb3 {[%clk 0:01:31]}  Rfe8 {[%clk 0:01:15]} 24. b5 {[%clk 0:01:30]}  axb5 {[%clk 0:01:13]} 25. axb5 {[%clk 0:01:31]}  Qc7 {[%clk 0:01:12]} 26. Qb4 {[%clk 0:01:15]}  f5 {[%clk 0:01:09]} 27. dxe5 {[%clk 0:01:09]}  Bxe5 {[%clk 0:01:07]} 28. g3 {[%clk 0:01:09]}  d4 {[%clk 0:01:02]} 29. Bg5 {[%clk 0:01:09]}  Rb8 {[%clk 0:00:58]} 30. Nc4 {[%clk 0:01:01]}  Bxc4 {[%clk 0:00:39]} 31. Qxc4+ {[%clk 0:01:02]}  Qf7 {[%clk 0:00:39]} 32. c6 {[%clk 0:00:57]}  bxc6 {[%clk 0:00:34]} 33. bxc6 {[%clk 0:00:57]}  Rbc8 {[%clk 0:00:34]} 34. Qb5 {[%clk 0:00:46]}  Bc7 {[%clk 0:00:30]} 35. Rxe8+ {[%clk 0:00:42]}  Rxe8 {[%clk 0:00:31]} 36. Rd1 {[%clk 0:00:39]}  Be5 {[%clk 0:00:20]} 37. Re1 {[%clk 0:00:28]}  Bc7 {[%clk 0:00:16]} 38. Rxe8+ {[%clk 0:00:27]}  Qxe8 {[%clk 0:00:17]} 39. Qd5+ {[%clk 0:00:27]}  Kg7 {[%clk 0:00:15]} 40. Qxd4+ {[%clk 0:00:26]}  Kg8 {[%clk 0:00:10]} 41. Qd5+ {[%clk 0:00:24]}  Qf7 {[%clk 0:00:04]} 42. Qd7 {[%clk 0:00:21]}  Be5 {[%clk 0:00:04]} 43. Bd8 {[%clk 0:00:15]}  Qc4 {[%clk 0:00:02]} 44. Qe8+ {[%clk 0:00:15]}  Kg7 {[%clk 0:00:02]} 45. Qxe5+ {[%clk 0:00:15]}  Kh6 {[%clk 0:00:03]} 46. Qf4+ {[%clk 0:00:12]} 1-0


[Site "https://www.chess.com"]

[Event "Titled Tuesday Blitz January 10 Early 2023"]
[White "Avazkhonov, Alikhon"]
[Black "Zaichenko, Daria"]
[WhiteFideId "14208504"]
[BlackFideId "4197453"]
[WhiteElo "1538"]
[BlackElo "2104"]
[Result "0-1"]
[Round "07"]
[TimeControl "180+2"]
[Date "2023.01.10"]
[WhiteClock "0:00:03"]
[BlackClock "0:00:56"]

1. d4 {[%clk 0:03:00]}  d5 {[%clk 0:02:56]} 2. c4 {[%clk 0:03:01]}  e6 {[%clk 0:02:54]} 3. Nc3 {[%clk 0:03:01]}  Be7 {[%clk 0:02:54]} 4. Nf3 {[%clk 0:03:00]}  Nf6 {[%clk 0:02:54]} 5. cxd5 {[%clk 0:03:00]}  exd5 {[%clk 0:02:54]} 6. Bg5 {[%clk 0:03:00]}  c6 {[%clk 0:02:52]} 7. Qc2 {[%clk 0:02:59]}  O-O {[%clk 0:02:52]} 8. e3 {[%clk 0:03:00]}  Ne4 {[%clk 0:02:52]} 9. Bf4 {[%clk 0:02:37]}  f5 {[%clk 0:02:45]} 10. Bd3 {[%clk 0:02:29]}  Nd7 {[%clk 0:02:44]} 11. h4 {[%clk 0:01:54]}  Ndf6 {[%clk 0:02:38]} 12. h5 {[%clk 0:01:53]}  Ng4 {[%clk 0:02:34]} 13. O-O {[%clk 0:01:42]}  Qe8 {[%clk 0:02:31]} 14. h6 {[%clk 0:01:40]}  g5 {[%clk 0:02:22]} 15. Be5 {[%clk 0:01:11]}  Qh5 {[%clk 0:02:17]} 16. b4 {[%clk 0:00:09]}  Bd7 {[%clk 0:02:06]} 17. b5 {[%clk 0:00:09]}  Rac8 {[%clk 0:01:56]} 18. b6 {[%clk 0:00:03]}  axb6 {[%clk 0:01:52]} 19. Na4 {[%clk 0:00:03]}  c5 {[%clk 0:00:59]} 20. Nxb6 {[%clk 0:00:03]}  Rc6 {[%clk 0:00:57]} 21. Nxd7 {[%clk 0:00:03]}  Rxh6 {[%clk 0:00:56]} 0-1


[Site "https://www.chess.com"]

[Event "Titled Tuesday Blitz January 10 Early 2023"]
[White "Osinovsky, Stepan"]
[Black "Samaganova, Aleksandra"]
[WhiteFideId "4157354"]
[BlackFideId "13800221"]
[WhiteElo "2241"]
[BlackElo "1856"]
[Result "1-0"]
[Round "07"]
[TimeControl "180+2"]
[Date "2023.01.10"]
[WhiteClock "0:02:15"]
[BlackClock "0:02:39"]

1. Nf3 {[%clk 0:02:57]}  c5 {[%clk 0:02:58]} 2. g3 {[%clk 0:02:58]}  Nc6 {[%clk 0:02:56]} 3. Bg2 {[%clk 0:02:59]}  g6 {[%clk 0:02:56]} 4. O-O {[%clk 0:03:00]}  Bg7 {[%clk 0:02:56]} 5. d3 {[%clk 0:02:58]}  e6 {[%clk 0:02:54]} 6. Nbd2 {[%clk 0:02:59]}  Nge7 {[%clk 0:02:54]} 7. e4 {[%clk 0:02:55]}  O-O {[%clk 0:02:53]} 8. h4 {[%clk 0:02:55]}  h6 {[%clk 0:02:53]} 9. Re1 {[%clk 0:02:55]}  d5 {[%clk 0:02:53]} 10. e5 {[%clk 0:02:51]}  Rb8 {[%clk 0:02:53]} 11. Qe2 {[%clk 0:02:50]}  b5 {[%clk 0:02:53]} 12. Nf1 {[%clk 0:02:48]}  b4 {[%clk 0:02:48]} 13. h5 {[%clk 0:02:45]}  g5 {[%clk 0:02:47]} 14. N1h2 {[%clk 0:02:45]}  Nf5 {[%clk 0:02:39]} 15. Ng4 {[%clk 0:02:15]} 1-0


[Site "https://www.chess.com"]

[Event "Titled Tuesday Blitz January 10 Early 2023"]
[White "Aspire_ie"]
[Black "Abdilkhair, Abilmansur"]
[BlackFideId "13716417"]
[WhiteElo "2307"]
[BlackElo "2268"]
[Result "1-0"]
[Round "07"]
[TimeControl "180+2"]
[Date "2023.01.10"]
[WhiteClock "0:00:04"]
[BlackClock "0:00:08"]

1. e4 {[%clk 0:03:00]}  e5 {[%clk 0:01:21]} 2. Nf3 {[%clk 0:02:57]}  Nc6 {[%clk 0:01:21]} 3. Bb5 {[%clk 0:02:52]}  a6 {[%clk 0:01:19]} 4. Ba4 {[%clk 0:02:51]}  Nf6 {[%clk 0:01:19]} 5. O-O {[%clk 0:02:51]}  b5 {[%clk 0:01:19]} 6. Bb3 {[%clk 0:02:50]}  Be7 {[%clk 0:01:19]} 7. Re1 {[%clk 0:02:48]}  O-O {[%clk 0:01:20]} 8. a4 {[%clk 0:02:48]}  b4 {[%clk 0:01:17]} 9. c3 {[%clk 0:02:47]}  Rb8 {[%clk 0:01:14]} 10. d4 {[%clk 0:02:39]}  bxc3 {[%clk 0:01:11]} 11. bxc3 {[%clk 0:02:34]}  exd4 {[%clk 0:01:10]} 12. cxd4 {[%clk 0:02:33]}  d5 {[%clk 0:01:10]} 13. e5 {[%clk 0:02:26]}  Ne4 {[%clk 0:01:09]} 14. Nbd2 {[%clk 0:02:20]}  Bg4 {[%clk 0:00:59]} 15. Bc2 {[%clk 0:01:49]}  Nxd4 {[%clk 0:00:32]} 16. Nxe4 {[%clk 0:01:39]}  Nxc2 {[%clk 0:00:31]} 17. Qxc2 {[%clk 0:01:37]}  dxe4 {[%clk 0:00:30]} 18. Qxe4 {[%clk 0:01:36]}  Be6 {[%clk 0:00:27]} 19. Bf4 {[%clk 0:01:28]}  Bd5 {[%clk 0:00:26]} 20. Qe2 {[%clk 0:01:28]}  Qd7 {[%clk 0:00:19]} 21. Red1 {[%clk 0:01:22]}  Rfd8 {[%clk 0:00:16]} 22. Bg3 {[%clk 0:01:08]}  Qg4 {[%clk 0:00:10]} 23. Nd4 {[%clk 0:00:49]}  Qxe2 {[%clk 0:00:04]} 24. Nxe2 {[%clk 0:00:50]}  c6 {[%clk 0:00:02]} 25. Rab1 {[%clk 0:00:38]}  Rb4 {[%clk 0:00:03]} 26. Nc3 {[%clk 0:00:33]}  Rdb8 {[%clk 0:00:03]} 27. Rxb4 {[%clk 0:00:29]}  Rxb4 {[%clk 0:00:04]} 28. h3 {[%clk 0:00:24]}  Rb3 {[%clk 0:00:03]} 29. Nxd5 {[%clk 0:00:23]}  cxd5 {[%clk 0:00:04]} 30. Rxd5 {[%clk 0:00:23]}  g6 {[%clk 0:00:03]} 31. Rd7 {[%clk 0:00:20]}  Bb4 {[%clk 0:00:03]} 32. Bh4 {[%clk 0:00:17]}  Kg7 {[%clk 0:00:02]} 33. Bf6+ {[%clk 0:00:16]}  Kh6 {[%clk 0:00:03]} 34. Rxf7 {[%clk 0:00:16]}  Bc5 {[%clk 0:00:02]} 35. g4 {[%clk 0:00:14]}  g5 {[%clk 0:00:02]} 36. Rg7 {[%clk 0:00:08]}  Bd4 {[%clk 0:00:02]} 37. Rxg5 {[%clk 0:00:07]}  Rb2 {[%clk 0:00:02]} 38. Rh5+ {[%clk 0:00:06]}  Kg6 {[%clk 0:00:02]} 39. Rf5 {[%clk 0:00:06]}  Kf7 {[%clk 0:00:03]} 40. Bh8+ {[%clk 0:00:04]}  Ke6 {[%clk 0:00:03]} 41. Rf6+ {[%clk 0:00:03]}  Kd5 {[%clk 0:00:03]} 42. Rd6+ {[%clk 0:00:03]}  Ke4 {[%clk 0:00:03]} 43. Rxd4+ {[%clk 0:00:03]}  Kf3 {[%clk 0:00:04]} 44. Rd3+ {[%clk 0:00:03]}  Ke4 {[%clk 0:00:05]} 45. Re3+ {[%clk 0:00:03]}  Kf4 {[%clk 0:00:05]} 46. e6 {[%clk 0:00:04]}  Rb1+ {[%clk 0:00:06]} 47. Kg2 {[%clk 0:00:04]}  Rb8 {[%clk 0:00:07]} 48. Bg7 {[%clk 0:00:03]}  Rg8 {[%clk 0:00:07]} 49. e7 {[%clk 0:00:03]}  Rxg7 {[%clk 0:00:08]} 50. e8=Q {[%clk 0:00:04]}  Rc7 {[%clk 0:00:08]} 51. Qe5# {[%clk 0:00:04]} 1-0


[Site "https://www.chess.com"]

[Event "Titled Tuesday Blitz January 10 Early 2023"]
[White "Hartikainen, Jarmo"]
[Black "Donskov, Anatoly"]
[WhiteFideId "503134"]
[BlackFideId "24143413"]
[WhiteElo "2108"]
[BlackElo "2279"]
[Result "0-1"]
[Round "07"]
[TimeControl "180+2"]
[Date "2023.01.10"]
[WhiteClock "0:00:08"]
[BlackClock "0:00:17"]

1. e4 {[%clk 0:03:00]}  c5 {[%clk 0:01:30]} 2. c3 {[%clk 0:03:00]}  d5 {[%clk 0:01:29]} 3. exd5 {[%clk 0:03:00]}  Qxd5 {[%clk 0:01:30]} 4. d4 {[%clk 0:03:00]}  Nf6 {[%clk 0:01:30]} 5. Nf3 {[%clk 0:02:59]}  e6 {[%clk 0:01:30]} 6. Na3 {[%clk 0:02:55]}  a6 {[%clk 0:01:30]} 7. Nc4 {[%clk 0:02:47]}  Nbd7 {[%clk 0:01:30]} 8. Be3 {[%clk 0:02:40]}  b5 {[%clk 0:01:28]} 9. Nce5 {[%clk 0:02:35]}  Bb7 {[%clk 0:01:27]} 10. Be2 {[%clk 0:02:15]}  Be7 {[%clk 0:01:22]} 11. O-O {[%clk 0:02:06]}  O-O {[%clk 0:00:58]} 12. dxc5 {[%clk 0:01:52]}  Nxe5 {[%clk 0:00:37]} 13. Qxd5 {[%clk 0:01:51]}  Nxd5 {[%clk 0:00:32]} 14. Nxe5 {[%clk 0:01:49]}  Nxe3 {[%clk 0:00:33]} 15. c6 {[%clk 0:01:22]}  Nxf1 {[%clk 0:00:32]} 16. cxb7 {[%clk 0:01:21]}  Ra7 {[%clk 0:00:27]} 17. Bf3 {[%clk 0:01:14]}  Nd2 {[%clk 0:00:24]} 18. Bc6 {[%clk 0:01:00]}  Nc4 {[%clk 0:00:19]} 19. Nd7 {[%clk 0:00:53]}  Bd6 {[%clk 0:00:09]} 20. Nxf8 {[%clk 0:00:51]}  Kxf8 {[%clk 0:00:10]} 21. b3 {[%clk 0:00:51]}  Na5 {[%clk 0:00:10]} 22. Rd1 {[%clk 0:00:48]}  Ke7 {[%clk 0:00:10]} 23. Be4 {[%clk 0:00:46]}  Nxb7 {[%clk 0:00:10]} 24. h4 {[%clk 0:00:43]}  Nc5 {[%clk 0:00:09]} 25. Bxh7 {[%clk 0:00:42]}  g6 {[%clk 0:00:08]} 26. h5 {[%clk 0:00:42]}  gxh5 {[%clk 0:00:08]} 27. Rd4 {[%clk 0:00:39]}  Rc7 {[%clk 0:00:08]} 28. Rh4 {[%clk 0:00:39]}  Nd7 {[%clk 0:00:08]} 29. Rh3 {[%clk 0:00:35]}  Nf6 {[%clk 0:00:06]} 30. Bc2 {[%clk 0:00:33]}  Be5 {[%clk 0:00:06]} 31. f3 {[%clk 0:00:20]}  Rxc3 {[%clk 0:00:06]} 32. Be4 {[%clk 0:00:19]}  Bd4+ {[%clk 0:00:06]} 33. Kh2 {[%clk 0:00:19]}  Nxe4 {[%clk 0:00:07]} 34. fxe4 {[%clk 0:00:19]}  Rxh3+ {[%clk 0:00:07]} 35. Kxh3 {[%clk 0:00:20]}  f5 {[%clk 0:00:07]} 36. exf5 {[%clk 0:00:19]}  exf5 {[%clk 0:00:08]} 37. Kh4 {[%clk 0:00:19]}  Be5 {[%clk 0:00:07]} 38. Kxh5 {[%clk 0:00:20]}  Bg3 {[%clk 0:00:07]} 39. Kg5 {[%clk 0:00:19]}  f4 {[%clk 0:00:08]} 40. Kf5 {[%clk 0:00:19]}  Kd6 {[%clk 0:00:09]} 41. Ke4 {[%clk 0:00:19]}  Kc5 {[%clk 0:00:10]} 42. a3 {[%clk 0:00:20]}  a5 {[%clk 0:00:10]} 43. Kd3 {[%clk 0:00:20]}  a4 {[%clk 0:00:10]} 44. b4+ {[%clk 0:00:14]}  Kd5 {[%clk 0:00:10]} 45. Kd2 {[%clk 0:00:13]}  Kc4 {[%clk 0:00:10]} 46. Kc2 {[%clk 0:00:13]}  Bf2 {[%clk 0:00:10]} 47. Kb2 {[%clk 0:00:13]}  Kd3 {[%clk 0:00:10]} 48. Kc1 {[%clk 0:00:11]}  Kc3 {[%clk 0:00:11]} 49. Kd1 {[%clk 0:00:10]}  Kb3 {[%clk 0:00:11]} 50. Ke2 {[%clk 0:00:11]}  Bg3 {[%clk 0:00:11]} 51. Kd3 {[%clk 0:00:10]}  Kxa3 {[%clk 0:00:12]} 52. Kc3 {[%clk 0:00:11]}  Ka2 {[%clk 0:00:12]} 53. Kc2 {[%clk 0:00:11]}  a3 {[%clk 0:00:13]} 54. Kc3 {[%clk 0:00:10]}  Kb1 {[%clk 0:00:13]} 55. Kb3 {[%clk 0:00:10]}  a2 {[%clk 0:00:13]} 56. Kc3 {[%clk 0:00:08]}  a1=Q+ {[%clk 0:00:13]} 57. Kb3 {[%clk 0:00:09]}  Qa2+ {[%clk 0:00:13]} 58. Kc3 {[%clk 0:00:09]}  Qc4+ {[%clk 0:00:14]} 59. Kd2 {[%clk 0:00:09]}  Qxb4+ {[%clk 0:00:14]} 60. Ke2 {[%clk 0:00:08]}  Qc4+ {[%clk 0:00:14]} 61. Kf3 {[%clk 0:00:08]}  Qd3+ {[%clk 0:00:15]} 62. Kg4 {[%clk 0:00:08]}  Kc2 {[%clk 0:00:15]} 63. Kh3 {[%clk 0:00:07]}  f3 {[%clk 0:00:15]} 64. gxf3 {[%clk 0:00:07]}  Bd6 {[%clk 0:00:16]} 65. Kg4 {[%clk 0:00:07]}  b4 {[%clk 0:00:16]} 66. f4 {[%clk 0:00:07]}  b3 {[%clk 0:00:16]} 67. f5 {[%clk 0:00:07]}  b2 {[%clk 0:00:16]} 68. f6 {[%clk 0:00:07]}  b1=Q {[%clk 0:00:16]} 69. f7 {[%clk 0:00:08]}  Qg1+ {[%clk 0:00:17]} 0-1


[Site "https://www.chess.com"]

[Event "Titled Tuesday Blitz January 10 Early 2023"]
[White "Kho, Darrell"]
[Black "Buscar, Michael"]
[WhiteFideId "1019317"]
[BlackFideId "2603616"]
[WhiteElo "2075"]
[BlackElo "2041"]
[Result "1-0"]
[Round "07"]
[TimeControl "180+2"]
[Date "2023.01.10"]
[WhiteClock "0:01:05"]
[BlackClock "0:02:16"]

1. e4 {[%clk 0:03:00]}  c5 {[%clk 0:02:59]} 2. Nf3 {[%clk 0:02:59]}  Nc6 {[%clk 0:03:00]} 3. Bb5 {[%clk 0:02:59]}  Nf6 {[%clk 0:03:00]} 4. e5 {[%clk 0:02:49]}  Nd5 {[%clk 0:03:00]} 5. Nc3 {[%clk 0:02:48]}  Nc7 {[%clk 0:03:00]} 6. Bxc6 {[%clk 0:02:47]}  bxc6 {[%clk 0:02:59]} 7. O-O {[%clk 0:02:46]}  g6 {[%clk 0:02:59]} 8. Re1 {[%clk 0:02:42]}  Bg7 {[%clk 0:02:59]} 9. Ne4 {[%clk 0:02:30]}  Ne6 {[%clk 0:02:58]} 10. d3 {[%clk 0:02:18]}  d5 {[%clk 0:02:39]} 11. exd6 {[%clk 0:02:09]}  exd6 {[%clk 0:02:39]} 12. Bg5 {[%clk 0:01:53]}  Nxg5 {[%clk 0:02:20]} 13. Nf6+ {[%clk 0:01:04]}  Kf8 {[%clk 0:02:15]} 14. Re8+ {[%clk 0:01:04]}  Qxe8 {[%clk 0:02:15]} 15. Nxe8 {[%clk 0:01:04]}  Nxf3+ {[%clk 0:02:15]} 16. Qxf3 {[%clk 0:01:04]}  Kxe8 {[%clk 0:02:16]} 17. Qxc6+ {[%clk 0:01:05]} 1-0


[Site "https://www.chess.com"]

[Event "Titled Tuesday Blitz January 10 Early 2023"]
[White "Flores Quillas, Diego Saul Rodri"]
[Black "Cruz Gomez, Miguel Angel"]
[WhiteFideId "3822508"]
[BlackFideId "5137160"]
[WhiteElo "2359"]
[BlackElo "1950"]
[Result "1-0"]
[Round "07"]
[TimeControl "180+2"]
[Date "2023.01.10"]
[WhiteClock "0:00:43"]
[BlackClock "0:01:08"]

1. e4 {[%clk 0:02:57]}  c5 {[%clk 0:02:53]} 2. Nf3 {[%clk 0:02:56]}  e6 {[%clk 0:02:54]} 3. d4 {[%clk 0:02:56]}  cxd4 {[%clk 0:02:54]} 4. Nxd4 {[%clk 0:02:57]}  Nc6 {[%clk 0:02:55]} 5. Nc3 {[%clk 0:02:55]}  Qc7 {[%clk 0:02:55]} 6. g3 {[%clk 0:02:55]}  a6 {[%clk 0:02:33]} 7. Bg2 {[%clk 0:02:54]}  Nge7 {[%clk 0:02:25]} 8. O-O {[%clk 0:02:48]}  Nxd4 {[%clk 0:02:21]} 9. Qxd4 {[%clk 0:02:39]}  Nc6 {[%clk 0:02:22]} 10. Qd3 {[%clk 0:02:36]}  Ne5 {[%clk 0:02:16]} 11. Qe2 {[%clk 0:02:25]}  b5 {[%clk 0:02:06]} 12. a4 {[%clk 0:02:20]}  b4 {[%clk 0:02:05]} 13. Nb1 {[%clk 0:02:21]}  Bb7 {[%clk 0:02:05]} 14. f4 {[%clk 0:02:18]}  Bc5+ {[%clk 0:02:02]} 15. Kh1 {[%clk 0:02:13]}  Ng6 {[%clk 0:01:54]} 16. Nd2 {[%clk 0:02:07]}  h5 {[%clk 0:01:52]} 17. e5 {[%clk 0:01:44]}  h4 {[%clk 0:01:50]} 18. g4 {[%clk 0:01:34]}  h3 {[%clk 0:01:48]} 19. Bxb7 {[%clk 0:01:30]}  Qxb7+ {[%clk 0:01:49]} 20. Qe4 {[%clk 0:01:31]}  d5 {[%clk 0:01:27]} 21. exd6 {[%clk 0:01:27]}  Qxe4+ {[%clk 0:01:28]} 22. Nxe4 {[%clk 0:01:28]}  Rc8 {[%clk 0:01:26]} 23. f5 {[%clk 0:01:10]}  exf5 {[%clk 0:01:19]} 24. gxf5 {[%clk 0:01:10]}  Ne5 {[%clk 0:01:19]} 25. Bf4 {[%clk 0:00:56]}  f6 {[%clk 0:01:19]} 26. Bxe5 {[%clk 0:00:55]}  fxe5 {[%clk 0:01:20]} 27. f6 {[%clk 0:00:55]}  gxf6 {[%clk 0:01:18]} 28. Rxf6 {[%clk 0:00:56]}  Rh4 {[%clk 0:01:14]} 29. Rd1 {[%clk 0:00:46]}  Rd8 {[%clk 0:01:08]} 30. Nxc5 {[%clk 0:00:43]} 1-0


[Site "https://www.chess.com"]

[Event "Titled Tuesday Blitz January 10 Early 2023"]
[White "Bove, Alessandro"]
[Black "Arencibia Monduy, Antonio"]
[WhiteFideId "814121"]
[BlackFideId "3507939"]
[WhiteElo "2311"]
[BlackElo "2122"]
[Result "1-0"]
[Round "07"]
[TimeControl "180+2"]
[Date "2023.01.10"]
[WhiteClock "0:00:24"]
[BlackClock "0:00:01"]

1. d4 {[%clk 0:03:00]}  Nf6 {[%clk 0:02:58]} 2. Nf3 {[%clk 0:02:47]}  d6 {[%clk 0:02:58]} 3. b3 {[%clk 0:02:44]}  g6 {[%clk 0:02:58]} 4. Bb2 {[%clk 0:02:43]}  Bg7 {[%clk 0:02:58]} 5. Nbd2 {[%clk 0:02:43]}  O-O {[%clk 0:02:55]} 6. e3 {[%clk 0:02:42]}  c6 {[%clk 0:02:52]} 7. h4 {[%clk 0:02:42]}  h5 {[%clk 0:02:51]} 8. Bd3 {[%clk 0:02:40]}  Re8 {[%clk 0:02:39]} 9. Ng5 {[%clk 0:02:35]}  e5 {[%clk 0:02:34]} 10. dxe5 {[%clk 0:02:33]}  dxe5 {[%clk 0:02:33]} 11. Bc4 {[%clk 0:02:32]}  Re7 {[%clk 0:02:24]} 12. Ndf3 {[%clk 0:02:27]}  Qxd1+ {[%clk 0:01:34]} 13. Rxd1 {[%clk 0:02:28]}  Nbd7 {[%clk 0:01:34]} 14. Nxf7 {[%clk 0:01:45]}  Rxf7 {[%clk 0:01:27]} 15. Ng5 {[%clk 0:01:44]}  Nd5 {[%clk 0:01:19]} 16. e4 {[%clk 0:01:38]}  b5 {[%clk 0:01:11]} 17. exd5 {[%clk 0:01:36]}  bxc4 {[%clk 0:01:09]} 18. Nxf7 {[%clk 0:01:31]}  Kxf7 {[%clk 0:01:08]} 19. dxc6 {[%clk 0:01:32]}  Nb6 {[%clk 0:01:05]} 20. Rd8 {[%clk 0:01:20]}  Bf6 {[%clk 0:00:58]} 21. c7 {[%clk 0:01:10]}  Bb7 {[%clk 0:00:48]} 22. Rxa8 {[%clk 0:01:08]}  Nxa8 {[%clk 0:00:45]} 23. bxc4 {[%clk 0:00:56]}  Nxc7 {[%clk 0:00:45]} 24. O-O {[%clk 0:00:56]}  Ba6 {[%clk 0:00:40]} 25. Rd1 {[%clk 0:00:54]}  Ke6 {[%clk 0:00:39]} 26. c5 {[%clk 0:00:51]}  Nd5 {[%clk 0:00:30]} 27. g3 {[%clk 0:00:48]}  Bc4 {[%clk 0:00:26]} 28. a3 {[%clk 0:00:46]}  a5 {[%clk 0:00:15]} 29. Re1 {[%clk 0:00:46]}  Kf5 {[%clk 0:00:13]} 30. Kg2 {[%clk 0:00:41]}  a4 {[%clk 0:00:12]} 31. Ba1 {[%clk 0:00:38]}  Bb5 {[%clk 0:00:12]} 32. Rb1 {[%clk 0:00:34]}  Bc6 {[%clk 0:00:12]} 33. Kg1 {[%clk 0:00:31]}  e4 {[%clk 0:00:12]} 34. Bxf6 {[%clk 0:00:30]}  Kxf6 {[%clk 0:00:12]} 35. Rb8 {[%clk 0:00:30]}  Ke5 {[%clk 0:00:12]} 36. Rg8 {[%clk 0:00:30]}  Ne7 {[%clk 0:00:08]} 37. Rg7 {[%clk 0:00:30]}  Kf6 {[%clk 0:00:08]} 38. Rh7 {[%clk 0:00:31]}  Bd5 {[%clk 0:00:07]} 39. Kf1 {[%clk 0:00:28]}  Bg8 {[%clk 0:00:07]} 40. Rh8 {[%clk 0:00:20]}  Kg7 {[%clk 0:00:07]} 41. Rxg8+ {[%clk 0:00:20]}  Kxg8 {[%clk 0:00:07]} 42. Ke2 {[%clk 0:00:21]}  Kf7 {[%clk 0:00:08]} 43. Ke3 {[%clk 0:00:21]}  Ke6 {[%clk 0:00:06]} 44. Kxe4 {[%clk 0:00:22]}  Nc6 {[%clk 0:00:06]} 45. f4 {[%clk 0:00:22]}  Na5 {[%clk 0:00:05]} 46. Kd4 {[%clk 0:00:22]}  Nc6+ {[%clk 0:00:02]} 47. Kc4 {[%clk 0:00:22]}  Ne7 {[%clk 0:00:02]} 48. Kb5 {[%clk 0:00:23]}  Kd5 {[%clk 0:00:02]} 49. c4+ {[%clk 0:00:23]}  Kd4 {[%clk 0:00:02]} 50. c6 {[%clk 0:00:24]}  Nc8 {[%clk 0:00:02]} 51. c7 {[%clk 0:00:24]}  Kc3 {[%clk 0:00:01]} 52. c5 {[%clk 0:00:22]}  Kb3 {[%clk 0:00:01]} 53. Kc6 {[%clk 0:00:22]}  Kxa3 {[%clk 0:00:02]} 54. Kb7 {[%clk 0:00:23]}  Ne7 {[%clk 0:00:02]} 55. c8=Q {[%clk 0:00:23]}  Nxc8 {[%clk 0:00:02]} 56. Kxc8 {[%clk 0:00:24]}  Kb4 {[%clk 0:00:02]} 57. Kd7 {[%clk 0:00:25]}  a3 {[%clk 0:00:03]} 58. c6 {[%clk 0:00:26]}  a2 {[%clk 0:00:04]} 59. c7 {[%clk 0:00:27]}  a1=Q {[%clk 0:00:04]} 60. c8=Q {[%clk 0:00:28]}  Qd4+ {[%clk 0:00:04]} 61. Ke7 {[%clk 0:00:28]}  Qe4+ {[%clk 0:00:04]} 62. Qe6 {[%clk 0:00:26]}  Qb7+ {[%clk 0:00:02]} 63. Kf6 {[%clk 0:00:27]}  Qf3 {[%clk 0:00:01]} 64. Qd6+ {[%clk 0:00:24]} 1-0


[Site "https://www.chess.com"]

[Event "Titled Tuesday Blitz January 10 Early 2023"]
[White "Riverol, Jose"]
[Black "Forgacs, Attila Jr."]
[WhiteFideId "3000427"]
[BlackFideId "773654"]
[WhiteElo "2304"]
[BlackElo "2264"]
[Result "1-0"]
[Round "07"]
[TimeControl "180+2"]
[Date "2023.01.10"]
[WhiteClock "0:00:23"]
[BlackClock "0:00:01"]

1. d4 {[%clk 0:02:57]}  Nf6 {[%clk 0:02:58]} 2. c4 {[%clk 0:02:57]}  g6 {[%clk 0:02:58]} 3. Nc3 {[%clk 0:02:57]}  Bg7 {[%clk 0:02:58]} 4. e4 {[%clk 0:02:57]}  d6 {[%clk 0:02:58]} 5. Nf3 {[%clk 0:02:57]}  O-O {[%clk 0:02:58]} 6. Be2 {[%clk 0:02:58]}  Nbd7 {[%clk 0:02:59]} 7. e5 {[%clk 0:02:57]}  dxe5 {[%clk 0:02:52]} 8. dxe5 {[%clk 0:02:58]}  Ne8 {[%clk 0:02:45]} 9. e6 {[%clk 0:02:56]}  fxe6 {[%clk 0:02:46]} 10. Ng5 {[%clk 0:02:56]}  Bxc3+ {[%clk 0:02:33]} 11. bxc3 {[%clk 0:02:55]}  Ng7 {[%clk 0:02:34]} 12. O-O {[%clk 0:02:45]}  Nf6 {[%clk 0:02:28]} 13. Qxd8 {[%clk 0:02:39]}  Rxd8 {[%clk 0:02:28]} 14. Ba3 {[%clk 0:02:39]}  Kf8 {[%clk 0:02:16]} 15. Rad1 {[%clk 0:02:36]}  Bd7 {[%clk 0:02:11]} 16. Bf3 {[%clk 0:02:35]}  Bc6 {[%clk 0:02:04]} 17. Bxc6 {[%clk 0:02:31]}  bxc6 {[%clk 0:02:05]} 18. Rfe1 {[%clk 0:02:30]}  h6 {[%clk 0:02:01]} 19. Nf3 {[%clk 0:02:20]}  Rxd1 {[%clk 0:01:44]} 20. Rxd1 {[%clk 0:02:20]}  Ne4 {[%clk 0:01:44]} 21. Ne5 {[%clk 0:02:18]}  Nxc3 {[%clk 0:01:43]} 22. Nxg6+ {[%clk 0:02:10]}  Kf7 {[%clk 0:01:43]} 23. Ne5+ {[%clk 0:02:09]}  Kf6 {[%clk 0:01:40]} 24. Nd7+ {[%clk 0:02:02]}  Kf7 {[%clk 0:01:39]} 25. Ne5+ {[%clk 0:02:01]}  Kf6 {[%clk 0:01:34]} 26. Nd7+ {[%clk 0:02:01]}  Kg6 {[%clk 0:01:26]} 27. Ne5+ {[%clk 0:01:55]}  Kf5 {[%clk 0:01:26]} 28. Re1 {[%clk 0:01:46]}  Rd8 {[%clk 0:01:12]} 29. Nxc6 {[%clk 0:01:43]}  Rd2 {[%clk 0:01:02]} 30. Nxe7+ {[%clk 0:01:41]}  Kf6 {[%clk 0:01:02]} 31. Ng8+ {[%clk 0:01:28]}  Kg6 {[%clk 0:01:00]} 32. Ne7+ {[%clk 0:01:26]}  Kf7 {[%clk 0:00:59]} 33. Nc6 {[%clk 0:01:18]}  Rxa2 {[%clk 0:00:57]} 34. Bb4 {[%clk 0:01:10]}  Ne2+ {[%clk 0:00:38]} 35. Kf1 {[%clk 0:01:09]}  Nf4 {[%clk 0:00:38]} 36. Ne5+ {[%clk 0:00:59]}  Ke8 {[%clk 0:00:37]} 37. g3 {[%clk 0:00:53]}  Nh3 {[%clk 0:00:33]} 38. Bc5 {[%clk 0:00:53]}  a5 {[%clk 0:00:20]} 39. Rb1 {[%clk 0:00:52]}  Rxf2+ {[%clk 0:00:07]} 40. Bxf2 {[%clk 0:00:50]}  Ke7 {[%clk 0:00:07]} 41. Be3 {[%clk 0:00:48]}  Kd6 {[%clk 0:00:05]} 42. Nf3 {[%clk 0:00:32]}  Nf5 {[%clk 0:00:05]} 43. Ke2 {[%clk 0:00:30]}  c5 {[%clk 0:00:03]} 44. Rb6+ {[%clk 0:00:28]}  Kc7 {[%clk 0:00:03]} 45. Rxe6 {[%clk 0:00:27]}  a4 {[%clk 0:00:01]} 46. Ra6 {[%clk 0:00:27]}  Kb7 {[%clk 0:00:01]} 47. Rxa4 {[%clk 0:00:27]}  Nd6 {[%clk 0:00:01]} 48. Bxc5 {[%clk 0:00:25]}  Ne4 {[%clk 0:00:01]} 49. Bd4 {[%clk 0:00:23]} 1-0


[Site "https://www.chess.com"]